[Event "*** Titled Tuesday 3|2 Blitz"]
[Site "Chess.com"]
[Date "2016.03.01"]
[Round "4"]
[White "Jahonas"]
[Black "alturas_pacificas"]
[Result "1-0"]
[WhiteElo "2182"]
[BlackElo "2162"]
[TimeControl "180+2"]
[EndTime "12:21:04 PST"]
[Termination "Jahonas won by resignation"]

1. d4 {[%clk 0:03:01.9]} 1... d5 {[%clk 0:03:00.5]} 2. Nf3 {[%clk 0:03:03.1]}
2... Nf6 {[%clk 0:02:50.1]} 3. c3 {[%clk 0:03:04.2]} 3... Bf5 {[%clk 0:02:50.4]}
4. Bf4 {[%clk 0:03:05]} 4... e6 {[%clk 0:02:50.4]} 5. Nbd2 {[%clk 0:03:06.1]}
5... a6 {[%clk 0:02:49.9]} 6. e3 {[%clk 0:03:06.9]} 6... c5 {[%clk 0:02:50.9]}
7. Be2 {[%clk 0:03:07.7]} 7... Nc6 {[%clk 0:02:51.6]} 8. h3 {[%clk 0:03:08.7]}
8... h6 {[%clk 0:02:52.1]} 9. g4 {[%clk 0:03:09.1]} 9... Bh7 {[%clk 0:02:52.3]}
10. Ne5 {[%clk 0:03:10]} 10... cxd4 {[%clk 0:02:51.5]} 11. exd4 {[%clk
0:03:07.7]} 11... Bd6 {[%clk 0:02:52.4]} 12. Ndf3 {[%clk 0:03:07.2]} 12... O-O
{[%clk 0:02:52.5]} 13. Qd2 {[%clk 0:03:06.7]} 13... Ne4 {[%clk 0:02:52.9]} 14.
Qe3 {[%clk 0:03:06.7]} 14... Qc7 {[%clk 0:02:52]} 15. Rg1 {[%clk 0:02:55.8]}
15... f6 {[%clk 0:02:52.6]} 16. Nd3 {[%clk 0:02:56.5]} 16... Rae8 {[%clk
0:02:46.2]} 17. Bxd6 {[%clk 0:02:55.6]} 17... Qxd6 {[%clk 0:02:47.1]} 18. h4
{[%clk 0:02:54.9]} 18... e5 {[%clk 0:02:47]} 19. dxe5 {[%clk 0:02:55.4]} 19...
Nxe5 {[%clk 0:02:46.6]} 20. Nfxe5 {[%clk 0:02:54.1]} 20... fxe5 {[%clk
0:02:47.7]} 21. f3 {[%clk 0:02:30.8]} 21... d4 {[%clk 0:02:47.4]} 22. Qc1 {[%clk
0:02:24.9]} 22... Nc5 {[%clk 0:02:39]} 23. Nxc5 {[%clk 0:02:18.5]} 23... Qxc5
{[%clk 0:02:40.9]} 24. cxd4 {[%clk 0:02:14.8]} 24... Qxd4 {[%clk 0:02:40.8]} 25.
Qc4+ {[%clk 0:02:08.4]} 25... Kh8 {[%clk 0:02:40.5]} 26. Qxd4 {[%clk 0:02:06.9]}
26... exd4 {[%clk 0:02:41.5]} 27. Kd2 {[%clk 0:02:05.5]} 27... d3 {[%clk
0:02:40.1]} 28. Bd1 {[%clk 0:02:05.9]} 28... Rc8 {[%clk 0:02:33.4]} 29. Rc1
{[%clk 0:02:04.1]} 29... Rxc1 {[%clk 0:02:32.8]} 30. Kxc1 {[%clk 0:02:04.9]}
30... Rc8+ {[%clk 0:02:34.7]} 31. Kd2 {[%clk 0:02:05.8]} 31... Kg8 {[%clk
0:02:29.4]} 32. Re1 {[%clk 0:02:05.8]} 32... Kf8 {[%clk 0:02:30.2]} 33. g5
{[%clk 0:02:03.1]} 33... hxg5 {[%clk 0:02:30.1]} 34. hxg5 {[%clk 0:02:04.2]}
34... Bf5 {[%clk 0:02:31.6]} 35. Re5 {[%clk 0:02:04.2]} 35... g6 {[%clk
0:02:32.5]} 36. Bb3 {[%clk 0:01:53.2]} 36... b5 {[%clk 0:02:26.7]} 37. f4 {[%clk
0:01:51.1]} 37... Rc7 {[%clk 0:02:18]} 38. a3 {[%clk 0:01:47]} 38... Rh7 {[%clk
0:02:12.2]} 39. Bd1 {[%clk 0:01:18.7]} 39... Rh2+ {[%clk 0:02:11.9]} 40. Kc3
{[%clk 0:01:19.2]} 40... Rf2 {[%clk 0:02:06.9]} 41. Rc5 {[%clk 0:01:10.4]} 41...
Rxf4 {[%clk 0:02:00.4]} 42. Rc6 {[%clk 0:01:10.4]} 42... a5 {[%clk 0:01:56.3]}
43. Rb6 {[%clk 0:01:11.1]} 43... Rc4+ {[%clk 0:01:52.6]} 44. Kd2 {[%clk
0:01:10.8]} 44... b4 {[%clk 0:01:53.1]} 45. axb4 {[%clk 0:01:11.6]} 45... axb4
{[%clk 0:01:54]} 46. b3 {[%clk 0:01:06.4]} 46... Rh4 {[%clk 0:01:52.7]} 47. Rb7
{[%clk 0:01:02.6]} 47... Rh2+ {[%clk 0:01:51.7]} 48. Ke3 {[%clk 0:01:02.3]}
48... Rh3+ {[%clk 0:01:48.5]} 49. Kd2 {[%clk 0:01:01.7]} 49... Rh2+ {[%clk
0:01:49.3]} 50. Ke3 {[%clk 0:01:02.4]} 50... Rh1 {[%clk 0:01:44.7]} 51. Kd2
{[%clk 0:01:02.7]} 51... Rg1 {[%clk 0:01:44.3]} 52. Rxb4 {[%clk 0:01:02.9]}
52... Rxg5 {[%clk 0:01:44.7]} 53. Rd4 {[%clk 0:00:58.8]} 53... Ke7 {[%clk
0:01:41]} 54. b4 {[%clk 0:00:59.4]} 54... Rg2+ {[%clk 0:01:40.4]} 55. Kc3 {[%clk
0:00:59.4]} 55... Rg1 {[%clk 0:01:39.1]} 56. Bb3 {[%clk 0:00:58]} 56... Rc1+
{[%clk 0:01:37.9]} 57. Kd2 {[%clk 0:00:56.8]} 57... Rc7 {[%clk 0:01:38.5]} 58.
Bc4 {[%clk 0:00:55.4]} 58... Rb7 {[%clk 0:01:36.3]} 59. Bxd3 {[%clk 0:00:55]}
59... Bxd3 {[%clk 0:01:36.5]} 60. Kxd3 {[%clk 0:00:56]} 60... Rxb4 {[%clk
0:01:38]} 61. Rxb4 {[%clk 0:00:56.7]} 1-0

[Event "*** Titled Tuesday 3|2 Blitz"]
[Site "Chess.com"]
[Date "2016.03.01"]
[Round "4"]
[White "petrpalachev"]
[Black "Silent_Terror"]
[Result "0-1"]
[WhiteElo "2274"]
[BlackElo "2508"]
[TimeControl "180+2"]
[EndTime "12:21:06 PST"]
[Termination "Silent_Terror won by resignation"]

1. d4 {[%clk 0:03:01.9]} 1... Nf6 {[%clk 0:03:00.9]} 2. c4 {[%clk 0:03:02.8]}
2... e6 {[%clk 0:03:02.5]} 3. Nf3 {[%clk 0:03:03.1]} 3... Bb4+ {[%clk
0:03:03.9]} 4. Nbd2 {[%clk 0:03:03.7]} 4... b6 {[%clk 0:03:04.4]} 5. a3 {[%clk
0:03:02.1]} 5... Be7 {[%clk 0:02:59.1]} 6. e4 {[%clk 0:03:02.2]} 6... d6 {[%clk
0:02:58]} 7. Be2 {[%clk 0:03:02.6]} 7... Bb7 {[%clk 0:02:59.4]} 8. Qc2 {[%clk
0:02:59.7]} 8... c5 {[%clk 0:03:00.8]} 9. e5 {[%clk 0:02:58.6]} 9... Nfd7 {[%clk
0:03:00]} 10. Ne4 {[%clk 0:02:54.2]} 10... d5 {[%clk 0:02:50.1]} 11. cxd5 {[%clk
0:02:09]} 11... exd5 {[%clk 0:02:47.7]} 12. Neg5 {[%clk 0:01:58.8]} 12... h6
{[%clk 0:02:37.5]} 13. Nxf7 {[%clk 0:01:53.3]} 13... Kxf7 {[%clk 0:02:38.4]} 14.
Qf5+ {[%clk 0:01:48.1]} 14... Kg8 {[%clk 0:02:24]} 15. Qe6+ {[%clk 0:01:47.8]}
15... Kh7 {[%clk 0:02:22.7]} 16. Qf5+ {[%clk 0:01:49.3]} 16... Kg8 {[%clk
0:02:24]} 17. Qe6+ {[%clk 0:01:49.5]} 17... Kf8 {[%clk 0:02:25.3]} 18. Qf5+
{[%clk 0:01:49.1]} 18... Bf6 {[%clk 0:02:15.3]} 19. exf6 {[%clk 0:01:49.3]}
19... Qxf6 {[%clk 0:02:14.7]} 20. Qg4 {[%clk 0:01:33.9]} 20... Qf7 {[%clk
0:01:55.7]} 21. Ne5 {[%clk 0:01:24.4]} 21... Nxe5 {[%clk 0:01:51.6]} 22. dxe5
{[%clk 0:01:26.3]} 22... Nc6 {[%clk 0:01:42.6]} 23. f4 {[%clk 0:01:27.6]} 23...
Nd4 {[%clk 0:01:36.7]} 24. Bd1 {[%clk 0:01:18.8]} 24... Bc8 {[%clk 0:01:36.6]}
25. Qh4 {[%clk 0:01:13.8]} 25... Bf5 {[%clk 0:01:31]} 26. O-O {[%clk 0:01:14.1]}
26... g6 {[%clk 0:01:25.5]} 27. Be3 {[%clk 0:01:12.8]} 27... Nc2 {[%clk
0:01:17]} 28. Bxc2 {[%clk 0:01:10]} 28... Bxc2 {[%clk 0:01:18.9]} 29. f5 {[%clk
0:00:58.3]} 29... gxf5 {[%clk 0:01:11.3]} 30. Bxh6+ {[%clk 0:00:58.6]} 30... Ke8
{[%clk 0:01:11.1]} 31. e6 {[%clk 0:00:35.8]} 31... Qxe6 {[%clk 0:01:06.5]} 32.
Qh5+ {[%clk 0:00:04.2]} 32... Kd7 {[%clk 0:01:03.4]} 33. Rae1 {[%clk 0:00:04.7]}
33... Be4 {[%clk 0:01:03.7]} 34. Rxe4 {[%clk 0:00:04.9]} 34... dxe4 {[%clk
0:00:59.7]} 35. Rd1+ {[%clk 0:00:05.9]} 35... Kc6 {[%clk 0:00:58]} 36. b4 {[%clk
0:00:02.7]} 36... Qxh6 {[%clk 0:00:53.8]} 37. b5+ {[%clk 0:00:03.4]} 37... Kxb5
{[%clk 0:00:50.6]} 38. Qe2+ {[%clk 0:00:02.9]} 38... Kc6 {[%clk 0:00:51.4]} 39.
h3 {[%clk 0:00:02.6]} 39... Rad8 {[%clk 0:00:50.7]} 0-1

[Event "*** Titled Tuesday 3|2 Blitz"]
[Site "Chess.com"]
[Date "2016.03.01"]
[Round "4"]
[White "jcgs1030"]
[Black "arnacman"]
[Result "0-1"]
[WhiteElo "2224"]
[BlackElo "2314"]
[TimeControl "180+2"]
[EndTime "12:21:14 PST"]
[Termination "arnacman won by resignation"]

1. e4 {[%clk 0:03:01.9]} 1... c5 {[%clk 0:03:00.4]} 2. Nf3 {[%clk 0:03:02.5]}
2... d6 {[%clk 0:03:01.5]} 3. d4 {[%clk 0:03:01.7]} 3... cxd4 {[%clk 0:03:03.4]}
4. Nxd4 {[%clk 0:03:03.4]} 4... Nf6 {[%clk 0:03:04.9]} 5. Nc3 {[%clk 0:03:05]}
5... a6 {[%clk 0:03:06.4]} 6. Bg5 {[%clk 0:03:04.6]} 6... e6 {[%clk 0:03:06.2]}
7. f4 {[%clk 0:03:05.6]} 7... Qc7 {[%clk 0:03:05.6]} 8. Qe2 {[%clk 0:03:06.3]}
8... Nbd7 {[%clk 0:02:59]} 9. f5 {[%clk 0:03:07.3]} 9... e5 {[%clk 0:02:56.8]}
10. Nb3 {[%clk 0:03:07.9]} 10... Be7 {[%clk 0:02:56]} 11. O-O-O {[%clk
0:03:08.8]} 11... b5 {[%clk 0:02:51.9]} 12. h4 {[%clk 0:03:04.7]} 12... Bb7
{[%clk 0:02:52.2]} 13. Kb1 {[%clk 0:03:03.1]} 13... b4 {[%clk 0:02:48.1]} 14.
Nd5 {[%clk 0:03:04.1]} 14... Nxd5 {[%clk 0:02:47.1]} 15. exd5 {[%clk 0:03:06]}
15... Nb6 {[%clk 0:02:22.9]} 16. Bxe7 {[%clk 0:02:58.1]} 16... Kxe7 {[%clk
0:02:22.2]} 17. Qg4 {[%clk 0:02:58.3]} 17... Rhc8 {[%clk 0:02:15]} 18. Bd3
{[%clk 0:02:55.1]} 18... Kf8 {[%clk 0:02:10.8]} 19. f6 {[%clk 0:02:55.6]} 19...
gxf6 {[%clk 0:02:02.7]} 20. Bxh7 {[%clk 0:02:56.5]} 20... Bxd5 {[%clk
0:01:56.6]} 21. Bf5 {[%clk 0:02:56.7]} 21... Ke7 {[%clk 0:01:52.3]} 22. Bxc8
{[%clk 0:02:53.2]} 22... Rxc8 {[%clk 0:01:52.1]} 23. Qxb4 {[%clk 0:02:52.4]}
23... Qxc2+ {[%clk 0:01:39]} 24. Ka1 {[%clk 0:02:52]} 24... Nc4 {[%clk
0:01:39.7]} 25. Nd2 {[%clk 0:02:23.7]} 25... a5 {[%clk 0:00:56.9]} 26. Qb3
{[%clk 0:02:08.8]} 26... Qxb3 {[%clk 0:00:13.5]} 27. Nxb3 {[%clk 0:02:08.2]}
27... Bxg2 {[%clk 0:00:14.1]} 28. Rhg1 {[%clk 0:02:06.1]} 28... Bf3 {[%clk
0:00:15.2]} 29. Rdf1 {[%clk 0:02:03.7]} 29... Bh5 {[%clk 0:00:15.8]} 30. Rc1
{[%clk 0:02:00.1]} 30... d5 {[%clk 0:00:16]} 31. Nxa5 {[%clk 0:02:01.1]} 31...
Rc5 {[%clk 0:00:13.8]} 32. Nxc4 {[%clk 0:02:00.5]} 32... dxc4 {[%clk 0:00:14.9]}
33. b3 {[%clk 0:01:59.4]} 33... c3 {[%clk 0:00:15.4]} 34. Rg3 {[%clk 0:02:00.2]}
34... f5 {[%clk 0:00:15.1]} 35. Rgxc3 {[%clk 0:01:54.5]} 35... Rxc3 {[%clk
0:00:16.1]} 36. Rxc3 {[%clk 0:01:56.4]} 36... f4 {[%clk 0:00:17.3]} 37. Kb2
{[%clk 0:01:55.8]} 37... e4 {[%clk 0:00:18.2]} 38. Rc5 {[%clk 0:01:52.5]} 38...
f3 {[%clk 0:00:13]} 39. Rxh5 {[%clk 0:01:52.9]} 39... f2 {[%clk 0:00:13.4]} 40.
Rf5 {[%clk 0:01:52.9]} 40... e3 {[%clk 0:00:14.6]} 41. Kc2 {[%clk 0:01:44.8]}
41... e2 {[%clk 0:00:15.8]} 42. Rxf2 {[%clk 0:01:39.4]} 42... e1=Q {[%clk
0:00:16.4]} 43. Rd2 {[%clk 0:01:39.2]} 43... Qxh4 {[%clk 0:00:17]} 44. a4 {[%clk
0:01:39.7]} 44... Qe4+ {[%clk 0:00:16]} 45. Kc3 {[%clk 0:01:39.9]} 45... f5
{[%clk 0:00:16.5]} 46. a5 {[%clk 0:01:38.4]} 46... Qe5+ {[%clk 0:00:16.6]} 47.
Kb4 {[%clk 0:01:38]} 47... Qe1 {[%clk 0:00:17.4]} 48. Kc3 {[%clk 0:01:38.3]}
48... f4 {[%clk 0:00:18.4]} 49. Kd3 {[%clk 0:01:38.3]} 49... f3 {[%clk
0:00:15.6]} 50. b4 {[%clk 0:01:38.8]} 50... f2 {[%clk 0:00:16.3]} 51. Re2+
{[%clk 0:01:39.5]} 51... Kd6 {[%clk 0:00:16.2]} 52. b5 {[%clk 0:01:40]} 52...
f1=Q {[%clk 0:00:17.3]} 0-1

[Event "*** Titled Tuesday 3|2 Blitz"]
[Site "Chess.com"]
[Date "2016.03.01"]
[Round "4"]
[White "Andrejkin"]
[Black "GianmarcoVaR"]
[Result "0-1"]
[WhiteElo "2109"]
[BlackElo "2320"]
[TimeControl "180+2"]
[EndTime "12:21:32 PST"]
[Termination "GianmarcoVaR won by resignation"]

1. e4 {[%clk 0:03:01.9]} 1... c5 {[%clk 0:02:58.9]} 2. Nf3 {[%clk 0:03:02.2]}
2... d6 {[%clk 0:02:59.9]} 3. d4 {[%clk 0:03:04.1]} 3... cxd4 {[%clk 0:03:00.9]}
4. Nxd4 {[%clk 0:03:06]} 4... Nf6 {[%clk 0:03:02]} 5. Bd3 {[%clk 0:03:03.5]}
5... Nc6 {[%clk 0:03:01.8]} 6. c3 {[%clk 0:03:04.3]} 6... g6 {[%clk 0:03:02.5]}
7. Be3 {[%clk 0:03:05.8]} 7... Ng4 {[%clk 0:03:01.9]} 8. Bc1 {[%clk 0:03:01.3]}
8... Bg7 {[%clk 0:03:02]} 9. Nxc6 {[%clk 0:03:00.8]} 9... bxc6 {[%clk
0:03:02.8]} 10. h3 {[%clk 0:02:59.1]} 10... Ne5 {[%clk 0:03:03.1]} 11. O-O
{[%clk 0:02:56]} 11... a5 {[%clk 0:03:02.3]} 12. f4 {[%clk 0:02:55.6]} 12...
Nxd3 {[%clk 0:03:02.9]} 13. Qxd3 {[%clk 0:02:55.7]} 13... Ba6 {[%clk 0:03:04.5]}
14. c4 {[%clk 0:02:56.2]} 14... Qb6+ {[%clk 0:03:00.3]} 15. Kh1 {[%clk
0:02:53.8]} 15... Qd4 {[%clk 0:02:25.2]} 16. Qxd4 {[%clk 0:02:35.7]} 16... Bxd4
{[%clk 0:02:26]} 17. Na3 {[%clk 0:02:37.6]} 17... a4 {[%clk 0:01:55.5]} 18. Rd1
{[%clk 0:02:35.5]} 18... Bc5 {[%clk 0:01:55.7]} 19. b3 {[%clk 0:02:32]} 19...
Kd7 {[%clk 0:01:54.6]} 20. e5 {[%clk 0:02:32]} 20... Rhb8 {[%clk 0:01:52.6]} 21.
f5 {[%clk 0:02:25.7]} 21... gxf5 {[%clk 0:01:36.6]} 22. Nc2 {[%clk 0:02:12]}
22... axb3 {[%clk 0:01:32.5]} 23. axb3 {[%clk 0:02:13.9]} 23... Rxb3 {[%clk
0:01:33.6]} 24. exd6 {[%clk 0:02:14.6]} 24... exd6 {[%clk 0:01:33.9]} 25. Nd4
{[%clk 0:02:10]} 25... Bxd4 {[%clk 0:01:29.3]} 26. Rxd4 {[%clk 0:02:11.9]} 26...
Bb7 {[%clk 0:01:30.5]} 27. Rxa8 {[%clk 0:02:01.5]} 27... Bxa8 {[%clk 0:01:31.6]}
28. Bf4 {[%clk 0:02:02.9]} 28... d5 {[%clk 0:00:52.9]} 29. c5 {[%clk 0:02:03]}
29... Bb7 {[%clk 0:00:49.5]} 30. Bd6 {[%clk 0:02:01.5]} 30... Ba6 {[%clk
0:00:39.1]} 31. Rh4 {[%clk 0:01:58.1]} 31... Bc4 {[%clk 0:00:28.1]} 32. Rf4
{[%clk 0:01:41.3]} 32... Bd3 {[%clk 0:00:25.8]} 33. Rh4 {[%clk 0:01:40]} 33...
Be4 {[%clk 0:00:24.9]} 34. Rxh7 {[%clk 0:01:37.2]} 34... d4 {[%clk 0:00:25.7]}
35. Rxf7+ {[%clk 0:01:38.1]} 35... Ke6 {[%clk 0:00:26.9]} 36. Re7+ {[%clk
0:01:21.1]} 36... Kd5 {[%clk 0:00:27.4]} 37. Rd7 {[%clk 0:01:17.9]} 37... Rxh3+
{[%clk 0:00:19.9]} 38. Kg1 {[%clk 0:01:18]} 38... Rd3 {[%clk 0:00:19.9]} 39.
Bf8+ {[%clk 0:01:03.2]} 39... Kc4 {[%clk 0:00:19.6]} 40. Rd6 {[%clk 0:00:56.5]}
40... Kxc5 {[%clk 0:00:16.3]} 41. Rd8+ {[%clk 0:00:47.7]} 41... Kc4 {[%clk
0:00:16.9]} 42. Ra8 {[%clk 0:00:47.3]} 42... Rd1+ {[%clk 0:00:16]} 43. Kh2
{[%clk 0:00:47.4]} 43... Rd2 {[%clk 0:00:17.5]} 44. Ra6 {[%clk 0:00:44.9]} 0-1

[Event "*** Titled Tuesday 3|2 Blitz"]
[Site "Chess.com"]
[Date "2016.03.01"]
[Round "4"]
[White "Spas_Kozhuharov"]
[Black "viditchess"]
[Result "1/2-1/2"]
[WhiteElo "2454"]
[BlackElo "2456"]
[TimeControl "180+2"]
[EndTime "12:21:45 PST"]
[Termination "Game drawn - insufficient material"]

1. d4 {[%clk 0:03:01.9]} 1... Nf6 {[%clk 0:03:00.6]} 2. c4 {[%clk 0:03:02.5]}
2... e6 {[%clk 0:03:01.6]} 3. Nc3 {[%clk 0:03:03]} 3... Bb4 {[%clk 0:03:02.1]}
4. Qc2 {[%clk 0:03:03.6]} 4... d5 {[%clk 0:02:57.1]} 5. cxd5 {[%clk 0:03:04]}
5... exd5 {[%clk 0:02:59]} 6. Bg5 {[%clk 0:03:04.5]} 6... h6 {[%clk 0:02:59.6]}
7. Bxf6 {[%clk 0:03:06]} 7... Qxf6 {[%clk 0:03:00]} 8. a3 {[%clk 0:03:07.5]}
8... Bxc3+ {[%clk 0:03:00.1]} 9. Qxc3 {[%clk 0:03:09.4]} 9... c6 {[%clk
0:02:59.7]} 10. e3 {[%clk 0:03:10.1]} 10... O-O {[%clk 0:02:56.9]} 11. Nf3
{[%clk 0:03:10.6]} 11... Bf5 {[%clk 0:02:57.1]} 12. Be2 {[%clk 0:03:08.8]} 12...
Nd7 {[%clk 0:02:58]} 13. b4 {[%clk 0:03:09.3]} 13... a6 {[%clk 0:02:58]} 14. O-O
{[%clk 0:03:09.3]} 14... Rfc8 {[%clk 0:02:18.5]} 15. Rfc1 {[%clk 0:03:09]} 15...
Qe7 {[%clk 0:02:15.6]} 16. a4 {[%clk 0:03:09.2]} 16... Nf6 {[%clk 0:02:16.5]}
17. Nd2 {[%clk 0:02:59.5]} 17... Ne8 {[%clk 0:02:12.1]} 18. Qc5 {[%clk 0:02:54]}
18... Nd6 {[%clk 0:02:09.7]} 19. Qb6 {[%clk 0:02:45.7]} 19... Qd8 {[%clk
0:01:56.9]} 20. Qxd8+ {[%clk 0:02:44.9]} 20... Rxd8 {[%clk 0:01:58.8]} 21. Nb3
{[%clk 0:02:42.6]} 21... Kf8 {[%clk 0:01:52.4]} 22. f3 {[%clk 0:02:39.9]} 22...
Ke7 {[%clk 0:01:52.9]} 23. Kf2 {[%clk 0:02:40]} 23... g5 {[%clk 0:01:40.8]} 24.
Nc5 {[%clk 0:02:23.6]} 24... a5 {[%clk 0:01:27.7]} 25. g4 {[%clk 0:02:18.1]}
25... Bg6 {[%clk 0:01:17.1]} 26. b5 {[%clk 0:02:05.6]} 26... cxb5 {[%clk
0:00:47.9]} 27. axb5 {[%clk 0:02:03.1]} 27... f5 {[%clk 0:00:46.9]} 28. h3
{[%clk 0:01:57.7]} 28... Rdc8 {[%clk 0:00:32.9]} 29. Bd3 {[%clk 0:01:49.4]}
29... a4 {[%clk 0:00:25.3]} 30. gxf5 {[%clk 0:01:45.1]} 30... Bxf5 {[%clk
0:00:26]} 31. Bxf5 {[%clk 0:01:40.2]} 31... Nxf5 {[%clk 0:00:27.9]} 32. Nxb7
{[%clk 0:01:39.3]} 32... Rxc1 {[%clk 0:00:27.3]} 33. Rxc1 {[%clk 0:01:41.2]}
33... a3 {[%clk 0:00:27.5]} 34. Nc5 {[%clk 0:01:40.9]} 34... Nd6 {[%clk
0:00:22.1]} 35. b6 {[%clk 0:01:41.1]} 35... Rb8 {[%clk 0:00:19.4]} 36. Ra1
{[%clk 0:01:33.5]} 36... Rxb6 {[%clk 0:00:13.7]} 37. Rxa3 {[%clk 0:01:33.8]}
37... Rb2+ {[%clk 0:00:15.3]} 38. Kg3 {[%clk 0:01:27.3]} 38... h5 {[%clk
0:00:16]} 39. Ra7+ {[%clk 0:01:25.2]} 39... Ke8 {[%clk 0:00:16.7]} 40. e4 {[%clk
0:01:23.9]} 40... Rd2 {[%clk 0:00:16.3]} 41. Ra4 {[%clk 0:01:06.1]} 41... Ke7
{[%clk 0:00:17.1]} 42. h4 {[%clk 0:01:06.5]} 42... gxh4+ {[%clk 0:00:16.4]} 43.
Kxh4 {[%clk 0:01:07.6]} 43... Nb5 {[%clk 0:00:16.2]} 44. exd5 {[%clk 0:00:58.9]}
44... Rxd4+ {[%clk 0:00:16.8]} 45. Rxd4 {[%clk 0:00:59.1]} 45... Nxd4 {[%clk
0:00:18.7]} 46. f4 {[%clk 0:00:54.4]} 46... Kd6 {[%clk 0:00:19.8]} 47. Nd3
{[%clk 0:00:53.7]} 47... Kxd5 {[%clk 0:00:20.7]} 48. Kxh5 {[%clk 0:00:55.6]}
48... Ke4 {[%clk 0:00:21.9]} 49. f5 {[%clk 0:00:54.8]} 49... Kxf5 {[%clk
0:00:22.8]} 50. Ne5 {[%clk 0:00:55.2]} 50... Kxe5 {[%clk 0:00:23.8]} 1/2-1/2

[Event "*** Titled Tuesday 3|2 Blitz"]
[Site "Chess.com"]
[Date "2016.03.01"]
[Round "4"]
[White "GrigorGrigorov"]
[Black "jk13"]
[Result "1/2-1/2"]
[WhiteElo "2512"]
[BlackElo "2399"]
[TimeControl "180+2"]
[EndTime "12:21:48 PST"]
[Termination "Game drawn by repetition"]

1. d4 {[%clk 0:03:01.9]} 1... Nf6 {[%clk 0:03:00.8]} 2. c4 {[%clk 0:03:02.4]}
2... e6 {[%clk 0:03:02.4]} 3. Nf3 {[%clk 0:03:02.8]} 3... Bb4+ {[%clk
0:03:03.9]} 4. Bd2 {[%clk 0:03:03.3]} 4... Bxd2+ {[%clk 0:03:04.5]} 5. Qxd2
{[%clk 0:03:04.5]} 5... O-O {[%clk 0:03:06.4]} 6. g3 {[%clk 0:03:04.1]} 6... d5
{[%clk 0:03:08.3]} 7. Qc2 {[%clk 0:03:00.1]} 7... c6 {[%clk 0:03:09.3]} 8. Bg2
{[%clk 0:03:00.3]} 8... Nbd7 {[%clk 0:03:10.9]} 9. O-O {[%clk 0:03:01.1]} 9...
b6 {[%clk 0:03:12.4]} 10. Nbd2 {[%clk 0:03:01.5]} 10... Bb7 {[%clk 0:03:13.8]}
11. e4 {[%clk 0:02:59.4]} 11... dxe4 {[%clk 0:03:15.7]} 12. Nxe4 {[%clk
0:03:00.2]} 12... c5 {[%clk 0:03:15.7]} 13. Nxf6+ {[%clk 0:02:37.4]} 13... Nxf6
{[%clk 0:03:16]} 14. Rfd1 {[%clk 0:02:36.2]} 14... Qc7 {[%clk 0:03:15.8]} 15.
Qe2 {[%clk 0:02:30.3]} 15... Rad8 {[%clk 0:03:15.4]} 16. dxc5 {[%clk 0:02:27.6]}
16... bxc5 {[%clk 0:03:16.8]} 17. b3 {[%clk 0:02:18.2]} 17... a5 {[%clk
0:03:10.1]} 18. Qe5 {[%clk 0:02:14.9]} 18... Qb6 {[%clk 0:03:06.6]} 19. Ne1
{[%clk 0:02:12.8]} 19... Bxg2 {[%clk 0:03:05.3]} 20. Kxg2 {[%clk 0:02:14.4]}
20... Qc6+ {[%clk 0:03:02.4]} 21. f3 {[%clk 0:02:06.2]} 21... a4 {[%clk
0:02:49.4]} 22. Nd3 {[%clk 0:02:06.6]} 22... Nd7 {[%clk 0:02:39.5]} 23. Qc3
{[%clk 0:02:06.5]} 23... h6 {[%clk 0:02:32.9]} 24. Rd2 {[%clk 0:02:05.9]} 24...
axb3 {[%clk 0:02:28.6]} 25. axb3 {[%clk 0:02:05.1]} 25... Rb8 {[%clk 0:02:25.9]}
26. Rad1 {[%clk 0:01:51.5]} 26... Qb6 {[%clk 0:02:14.5]} 27. Nc1 {[%clk
0:01:31.5]} 27... Nf6 {[%clk 0:02:15.5]} 28. Rd6 {[%clk 0:01:31.4]} 28... Qa7
{[%clk 0:02:12.6]} 29. R1d2 {[%clk 0:01:14.5]} 29... Rb6 {[%clk 0:02:11.7]} 30.
R6d3 {[%clk 0:01:10.1]} 30... Qb8 {[%clk 0:01:59.9]} 31. Ne2 {[%clk 0:01:04.5]}
31... Qb7 {[%clk 0:01:49.7]} 32. Nc1 {[%clk 0:00:48]} 32... Qb8 {[%clk 0:01:50]}
33. Qa5 {[%clk 0:00:43.1]} 33... Rc8 {[%clk 0:01:47.2]} 34. Qa1 {[%clk
0:00:34.9]} 34... e5 {[%clk 0:01:45.1]} 35. Re3 {[%clk 0:00:35.6]} 35... Re6
{[%clk 0:01:45]} 36. Rde2 {[%clk 0:00:36.6]} 36... Rce8 {[%clk 0:01:45.5]} 37.
Nd3 {[%clk 0:00:37.5]} 37... e4 {[%clk 0:01:38.3]} 38. Nxc5 {[%clk 0:00:38]}
38... exf3+ {[%clk 0:01:37.9]} 39. Kxf3 {[%clk 0:00:39.3]} 39... Rxe3+ {[%clk
0:01:32]} 40. Rxe3 {[%clk 0:00:40.3]} 40... Rxe3+ {[%clk 0:01:28.4]} 41. Kxe3
{[%clk 0:00:41.9]} 41... Qb4 {[%clk 0:01:08]} 42. Qd4 {[%clk 0:00:36.7]} 42...
Qe1+ {[%clk 0:01:07]} 43. Kd3 {[%clk 0:00:35]} 43... Qd1+ {[%clk 0:01:03.5]} 44.
Kc3 {[%clk 0:00:32.8]} 44... Qa1+ {[%clk 0:01:01.7]} 45. Kd3 {[%clk 0:00:34.5]}
45... Qd1+ {[%clk 0:00:56.9]} 46. Ke3 {[%clk 0:00:35.6]} 46... Ng4+ {[%clk
0:00:38.2]} 47. Ke4 {[%clk 0:00:36.3]} 47... f5+ {[%clk 0:00:33.3]} 48. Kd5
{[%clk 0:00:36.2]} 48... Nf6+ {[%clk 0:00:33.1]} 49. Ke5 {[%clk 0:00:36.9]}
49... Ng4+ {[%clk 0:00:34.1]} 50. Kd5 {[%clk 0:00:37.5]} 50... Nf6+ {[%clk
0:00:35.1]} 51. Ke5 {[%clk 0:00:38.2]} 51... Ng4+ {[%clk 0:00:33.1]} 52. Kd5
{[%clk 0:00:39]} 1/2-1/2